{"text_format":"3","workbook":"xlsx","n_sheets":2,"sheets":["Bryllupsbudget","Budgetoplysninger"],"not_rendered":{"charts":1,"images":1,"defined_names":2},"read":"whole","date_system":"1900"}

{"sheet":"Bryllupsbudget","index":0,"n_rows":16,"n_cols":16,"rows_kept":16,"merged":[[1,1,1,5]]}
[{"$nulls":6}," "]
[null,"LISA + DANIEL\nBIND KNUDEN"]
[{"$nulls":7}," "]
[]
[null,"KATEGORI","ANSLÅEDE OMKOSTNINGER","FAKTISKE OMKOSTNINGER","AFVIGELSE","BUDGET %",{"$nulls":3},"Usorteret","Anslåede omkostninger","Faktiske omkostninger","Anslåede omkostninger – Rangering af værdi","Plads","Nr.","Sorteret"]
[null,{"$f":"P6","v":"Reception"},{"$f":"VLOOKUP(TBL_Summary[[#This Row],[KATEGORI]],TBL_RankingData,2,FALSE)","v":{"v":14500,"d":"kr. 14,500"}},{"$f":"IF(VLOOKUP(TBL_Summary[[#This Row],[KATEGORI]],TBL_RankingData,3,FALSE)=0,\"\",VLOOKUP(TBL_Summary[[#This Row],[KATEGORI]],TBL_RankingData,3,FALSE))","v":{"v":12800,"d":"kr. 12,800"}},{"$f":"IF(OR(TBL_Summary[[#This Row],[ANSLÅEDE OMKOSTNINGER]]=\"\",TBL_Summary[[#This Row],[FAKTISKE OMKOSTNINGER]]=\"\"),\"\",TBL_Summary[[#This Row],[ANSLÅEDE OMKOSTNINGER]]-TBL_Summary[[#This Row],[FAKTISKE OMKOSTNINGER]])","v":{"v":1700,"d":"kr. 1,700"}},{"$f":"TBL_Summary[[#This Row],[ANSLÅEDE OMKOSTNINGER]]/SUM(TBL_Summary[ANSLÅEDE OMKOSTNINGER])","v":{"v":0.48739495798319327,"d":"48.7%"}},{"$nulls":3},"Reception",{"$f":"TBL_Reception[[#Totals],[ANSLÅET]]","v":14500},{"$f":"TBL_Reception[[#Totals],[FAKTISK]]","v":12800},{"$f":"K6-O6/100","v":14499.99},{"$f":"_xlfn.RANK.AVG(M6,$M$6:$M$15)","v":1},1,{"$f":"INDEX(TBL_RankingData,MATCH(O6,$N$6:$N$15,0),1)","v":"Reception"}]
[null,{"$f":"P7","v":"Påklædning"},{"$f":"VLOOKUP(TBL_Summary[[#This Row],[KATEGORI]],TBL_RankingData,2,FALSE)","v":{"v":4000,"d":"kr. 4,000"}},{"$f":"IF(VLOOKUP(TBL_Summary[[#This Row],[KATEGORI]],TBL_RankingData,3,FALSE)=0,\"\",VLOOKUP(TBL_Summary[[#This Row],[KATEGORI]],TBL_RankingData,3,FALSE))","v":{"v":2900,"d":"kr. 2,900"}},{"$f":"IF(OR(TBL_Summary[[#This Row],[ANSLÅEDE OMKOSTNINGER]]=\"\",TBL_Summary[[#This Row],[FAKTISKE OMKOSTNINGER]]=\"\"),\"\",TBL_Summary[[#This Row],[ANSLÅEDE OMKOSTNINGER]]-TBL_Summary[[#This Row],[FAKTISKE OMKOSTNINGER]])","v":{"v":1100,"d":"kr. 1,100"}},{"$f":"TBL_Summary[[#This Row],[ANSLÅEDE OMKOSTNINGER]]/SUM(TBL_Summary[ANSLÅEDE OMKOSTNINGER])","v":{"v":0.13445378151260504,"d":"13.4%"}},{"$nulls":3},"Påklædning",{"$f":"TBL_Attire[[#Totals],[ANSLÅET]]","v":4000},{"$f":"TBL_Attire[[#Totals],[FAKTISK]]","v":2900},{"$f":"K7-O7/100","v":3999.98},2,2,"Påklædning"]
[null,"Blomster og dekorationer",{"$f":"VLOOKUP(TBL_Summary[[#This Row],[KATEGORI]],TBL_RankingData,2,FALSE)","v":{"v":3000,"d":"kr. 3,000"}},{"$f":"IF(VLOOKUP(TBL_Summary[[#This Row],[KATEGORI]],TBL_RankingData,3,FALSE)=0,\"\",VLOOKUP(TBL_Summary[[#This Row],[KATEGORI]],TBL_RankingData,3,FALSE))","v":""},{"$f":"IF(OR(TBL_Summary[[#This Row],[ANSLÅEDE OMKOSTNINGER]]=\"\",TBL_Summary[[#This Row],[FAKTISKE OMKOSTNINGER]]=\"\"),\"\",TBL_Summary[[#This Row],[ANSLÅEDE OMKOSTNINGER]]-TBL_Summary[[#This Row],[FAKTISKE OMKOSTNINGER]])","v":""},{"$f":"TBL_Summary[[#This Row],[ANSLÅEDE OMKOSTNINGER]]/SUM(TBL_Summary[ANSLÅEDE OMKOSTNINGER])","v":{"v":0.10084033613445378,"d":"10.1%"}},{"$nulls":3},"Blomster og dekorationer",{"$f":"TBL_FlowersAndDecor[[#Totals],[ANSLÅET]]","v":3000},{"$f":"TBL_FlowersAndDecor[[#Totals],[FAKTISK]]","v":0},2999.97,3,3,"Blomster og dekorationer"]
[null,"Fotos og videoer",{"$f":"VLOOKUP(TBL_Summary[[#This Row],[KATEGORI]],TBL_RankingData,2,FALSE)","v":{"v":2500,"d":"kr. 2,500"}},{"$f":"IF(VLOOKUP(TBL_Summary[[#This Row],[KATEGORI]],TBL_RankingData,3,FALSE)=0,\"\",VLOOKUP(TBL_Summary[[#This Row],[KATEGORI]],TBL_RankingData,3,FALSE))","v":""},{"$f":"IF(OR(TBL_Summary[[#This Row],[ANSLÅEDE OMKOSTNINGER]]=\"\",TBL_Summary[[#This Row],[FAKTISKE OMKOSTNINGER]]=\"\"),\"\",TBL_Summary[[#This Row],[ANSLÅEDE OMKOSTNINGER]]-TBL_Summary[[#This Row],[FAKTISKE OMKOSTNINGER]])","v":""},{"$f":"TBL_Summary[[#This Row],[ANSLÅEDE OMKOSTNINGER]]/SUM(TBL_Summary[ANSLÅEDE OMKOSTNINGER])","v":{"v":0.08403361344537816,"d":"8.4%"}},{"$nulls":3},"Musik",{"$f":"TBL_Music[[#Totals],[ANSLÅET]]","v":1800},{"$f":"TBL_Music[[#Totals],[FAKTISK]]","v":0},1799.96,5,4,"Fotos og videoer"]
[null,"Musik",{"$f":"VLOOKUP(TBL_Summary[[#This Row],[KATEGORI]],TBL_RankingData,2,FALSE)","v":{"v":1800,"d":"kr. 1,800"}},{"$f":"IF(VLOOKUP(TBL_Summary[[#This Row],[KATEGORI]],TBL_RankingData,3,FALSE)=0,\"\",VLOOKUP(TBL_Summary[[#This Row],[KATEGORI]],TBL_RankingData,3,FALSE))","v":""},{"$f":"IF(OR(TBL_Summary[[#This Row],[ANSLÅEDE OMKOSTNINGER]]=\"\",TBL_Summary[[#This Row],[FAKTISKE OMKOSTNINGER]]=\"\"),\"\",TBL_Summary[[#This Row],[ANSLÅEDE OMKOSTNINGER]]-TBL_Summary[[#This Row],[FAKTISKE OMKOSTNINGER]])","v":""},{"$f":"TBL_Summary[[#This Row],[ANSLÅEDE OMKOSTNINGER]]/SUM(TBL_Summary[ANSLÅEDE OMKOSTNINGER])","v":{"v":0.06050420168067227,"d":"6.1%"}},{"$nulls":3},"Fotos og videoer",{"$f":"TBL_PhotographsAndVideo[[#Totals],[ANSLÅET]]","v":2500},{"$f":"TBL_PhotographsAndVideo[[#Totals],[FAKTISK]]","v":0},2499.95,4,5,"Musik"]
[null,"Gaver til gæster",{"$f":"VLOOKUP(TBL_Summary[[#This Row],[KATEGORI]],TBL_RankingData,2,FALSE)","v":{"v":1100,"d":"kr. 1,100"}},{"$f":"IF(VLOOKUP(TBL_Summary[[#This Row],[KATEGORI]],TBL_RankingData,3,FALSE)=0,\"\",VLOOKUP(TBL_Summary[[#This Row],[KATEGORI]],TBL_RankingData,3,FALSE))","v":""},{"$f":"IF(OR(TBL_Summary[[#This Row],[ANSLÅEDE OMKOSTNINGER]]=\"\",TBL_Summary[[#This Row],[FAKTISKE OMKOSTNINGER]]=\"\"),\"\",TBL_Summary[[#This Row],[ANSLÅEDE OMKOSTNINGER]]-TBL_Summary[[#This Row],[FAKTISKE OMKOSTNINGER]])","v":""},{"$f":"TBL_Summary[[#This Row],[ANSLÅEDE OMKOSTNINGER]]/SUM(TBL_Summary[ANSLÅEDE OMKOSTNINGER])","v":{"v":0.03697478991596639,"d":"3.7%"}},{"$nulls":3},"Gaver til gæster",{"$f":"TBL_FavorsAndGifts[[#Totals],[ANSLÅET]]","v":1100},{"$f":"TBL_FavorsAndGifts[[#Totals],[FAKTISK]]","v":0},1099.94,6,6,"Gaver til gæster"]
[null,{"$f":"P12","v":"Vielsesringe"},{"$f":"VLOOKUP(TBL_Summary[[#This Row],[KATEGORI]],TBL_RankingData,2,FALSE)","v":{"v":1100,"d":"kr. 1,100"}},{"$f":"IF(VLOOKUP(TBL_Summary[[#This Row],[KATEGORI]],TBL_RankingData,3,FALSE)=0,\"\",VLOOKUP(TBL_Summary[[#This Row],[KATEGORI]],TBL_RankingData,3,FALSE))","v":""},{"$f":"IF(OR(TBL_Summary[[#This Row],[ANSLÅEDE OMKOSTNINGER]]=\"\",TBL_Summary[[#This Row],[FAKTISKE OMKOSTNINGER]]=\"\"),\"\",TBL_Summary[[#This Row],[ANSLÅEDE OMKOSTNINGER]]-TBL_Summary[[#This Row],[FAKTISKE OMKOSTNINGER]])","v":""},{"$f":"TBL_Summary[[#This Row],[ANSLÅEDE OMKOSTNINGER]]/SUM(TBL_Summary[ANSLÅEDE OMKOSTNINGER])","v":{"v":0.03697478991596639,"d":"3.7%"}},{"$nulls":3},"Ceremoni",{"$f":"TBL_Ceremony[[#Totals],[ANSLÅET]]","v":800},{"$f":"TBL_Ceremony[[#Totals],[FAKTISK]]","v":0},799.93,8,7,"Vielsesringe"]
[null,{"$f":"P13","v":"Ceremoni"},{"$f":"VLOOKUP(TBL_Summary[[#This Row],[KATEGORI]],TBL_RankingData,2,FALSE)","v":{"v":800,"d":"kr. 800"}},{"$f":"IF(VLOOKUP(TBL_Summary[[#This Row],[KATEGORI]],TBL_RankingData,3,FALSE)=0,\"\",VLOOKUP(TBL_Summary[[#This Row],[KATEGORI]],TBL_RankingData,3,FALSE))","v":""},{"$f":"IF(OR(TBL_Summary[[#This Row],[ANSLÅEDE OMKOSTNINGER]]=\"\",TBL_Summary[[#This Row],[FAKTISKE OMKOSTNINGER]]=\"\"),\"\",TBL_Summary[[#This Row],[ANSLÅEDE OMKOSTNINGER]]-TBL_Summary[[#This Row],[FAKTISKE OMKOSTNINGER]])","v":""},{"$f":"TBL_Summary[[#This Row],[ANSLÅEDE OMKOSTNINGER]]/SUM(TBL_Summary[ANSLÅEDE OMKOSTNINGER])","v":{"v":0.02689075630252101,"d":"2.7%"}},{"$nulls":3},"Tryksager",{"$f":"TBL_Stationery[[#Totals],[ANSLÅET]]","v":500},{"$f":"TBL_Stationery[[#Totals],[FAKTISK]]","v":0},499.92,9,8,"Ceremoni"]
[null,{"$f":"P14","v":"Tryksager"},{"$f":"VLOOKUP(TBL_Summary[[#This Row],[KATEGORI]],TBL_RankingData,2,FALSE)","v":{"v":500,"d":"kr. 500"}},{"$f":"IF(VLOOKUP(TBL_Summary[[#This Row],[KATEGORI]],TBL_RankingData,3,FALSE)=0,\"\",VLOOKUP(TBL_Summary[[#This Row],[KATEGORI]],TBL_RankingData,3,FALSE))","v":""},{"$f":"IF(OR(TBL_Summary[[#This Row],[ANSLÅEDE OMKOSTNINGER]]=\"\",TBL_Summary[[#This Row],[FAKTISKE OMKOSTNINGER]]=\"\"),\"\",TBL_Summary[[#This Row],[ANSLÅEDE OMKOSTNINGER]]-TBL_Summary[[#This Row],[FAKTISKE OMKOSTNINGER]])","v":""},{"$f":"TBL_Summary[[#This Row],[ANSLÅEDE OMKOSTNINGER]]/SUM(TBL_Summary[ANSLÅEDE OMKOSTNINGER])","v":{"v":0.01680672268907563,"d":"1.7%"}},{"$nulls":3},"Vielsesringe",{"$f":"TBL_WeddingRings[[#Totals],[ANSLÅET]]","v":1100},{"$f":"TBL_WeddingRings[[#Totals],[FAKTISK]]","v":0},1099.91,7,9,"Tryksager"]
[null,{"$f":"P15","v":"Transport"},{"$f":"VLOOKUP(TBL_Summary[[#This Row],[KATEGORI]],TBL_RankingData,2,FALSE)","v":{"v":450,"d":"kr. 450"}},{"$f":"IF(VLOOKUP(TBL_Summary[[#This Row],[KATEGORI]],TBL_RankingData,3,FALSE)=0,\"\",VLOOKUP(TBL_Summary[[#This Row],[KATEGORI]],TBL_RankingData,3,FALSE))","v":""},{"$f":"IF(OR(TBL_Summary[[#This Row],[ANSLÅEDE OMKOSTNINGER]]=\"\",TBL_Summary[[#This Row],[FAKTISKE OMKOSTNINGER]]=\"\"),\"\",TBL_Summary[[#This Row],[ANSLÅEDE OMKOSTNINGER]]-TBL_Summary[[#This Row],[FAKTISKE OMKOSTNINGER]])","v":""},{"$f":"TBL_Summary[[#This Row],[ANSLÅEDE OMKOSTNINGER]]/SUM(TBL_Summary[ANSLÅEDE OMKOSTNINGER])","v":{"v":0.015126050420168067,"d":"1.5%"}},{"$nulls":3},"Transport",{"$f":"TBL_Transportation[[#Totals],[ANSLÅET]]","v":450},{"$f":"TBL_Transportation[[#Totals],[FAKTISK]]","v":0},449.9,10,10,"Transport"]
[null,"Total",{"$f":"SUBTOTAL(109,TBL_Summary[ANSLÅEDE OMKOSTNINGER])","v":{"v":29750,"d":"kr. 29,750"}},{"$f":"SUBTOTAL(109,TBL_Summary[FAKTISKE OMKOSTNINGER])","v":{"v":15700,"d":"kr. 15,700"}},{"$f":"TBL_Summary[[#Totals],[ANSLÅEDE OMKOSTNINGER]]-TBL_Summary[[#Totals],[FAKTISKE OMKOSTNINGER]]","v":{"v":14050,"d":"kr. 14,050"}},{"$f":"SUBTOTAL(109,TBL_Summary[BUDGET %])","v":{"v":1,"d":"100%"}}]

{"sheet":"Budgetoplysninger","index":1,"n_rows":91,"n_cols":6,"rows_kept":91}
[{"$nulls":5}," "]
[null,"BUDGETOPLYSNINGER"]
[]
[null,"RECEPTION","ANSLÅET","FAKTISK","AFVIGELSE"]
[null,"Sted og leje",{"v":8000,"d":"kr. 8,000.00"},{"v":7800,"d":"kr. 7,800.00"},{"$f":"IF(OR(TBL_Reception[[#This Row],[ANSLÅET]]=\"\",TBL_Reception[[#This Row],[FAKTISK]]=\"\"),\"\",TBL_Reception[[#This Row],[ANSLÅET]]-TBL_Reception[[#This Row],[FAKTISK]])","v":{"v":200,"d":"kr. 200.00"}}]
[null,"Mad og service",{"v":4000,"d":"kr. 4,000.00"},{"v":4200,"d":"kr. 4,200.00"},{"$f":"IF(OR(TBL_Reception[[#This Row],[ANSLÅET]]=\"\",TBL_Reception[[#This Row],[FAKTISK]]=\"\"),\"\",TBL_Reception[[#This Row],[ANSLÅET]]-TBL_Reception[[#This Row],[FAKTISK]])","v":{"v":-200,"d":"kr. -200.00"}}]
[null,"Drikkevarer",{"v":1000,"d":"kr. 1,000.00"},{"v":800,"d":"kr. 800.00"},{"$f":"IF(OR(TBL_Reception[[#This Row],[ANSLÅET]]=\"\",TBL_Reception[[#This Row],[FAKTISK]]=\"\"),\"\",TBL_Reception[[#This Row],[ANSLÅET]]-TBL_Reception[[#This Row],[FAKTISK]])","v":{"v":200,"d":"kr. 200.00"}}]
[null,"Kage",{"v":1000,"d":"kr. 1,000.00"},null,{"$f":"IF(OR(TBL_Reception[[#This Row],[ANSLÅET]]=\"\",TBL_Reception[[#This Row],[FAKTISK]]=\"\"),\"\",TBL_Reception[[#This Row],[ANSLÅET]]-TBL_Reception[[#This Row],[FAKTISK]])","v":""}]
[null,"Diverse udgifter",{"v":500,"d":"kr. 500.00"},null,{"$f":"IF(OR(TBL_Reception[[#This Row],[ANSLÅET]]=\"\",TBL_Reception[[#This Row],[FAKTISK]]=\"\"),\"\",TBL_Reception[[#This Row],[ANSLÅET]]-TBL_Reception[[#This Row],[FAKTISK]])","v":""}]
[null,"I ALT FOR RECEPTION",{"$f":"SUBTOTAL(109,TBL_Reception[ANSLÅET])","v":{"v":14500,"d":"kr. 14,500.00"}},{"$f":"SUBTOTAL(109,TBL_Reception[FAKTISK])","v":{"v":12800,"d":"kr. 12,800.00"}},{"$f":"TBL_Reception[[#Totals],[ANSLÅET]]-TBL_Reception[[#Totals],[FAKTISK]]","v":{"v":1700,"d":"kr. 1,700.00"}}]
[]
[]
[null,"PÅKLÆDNING","ANSLÅET","FAKTISK","AFVIGELSE"]
[null,"Smoking, jakkesæt og/eller kjoler",{"v":3000,"d":"kr. 3,000.00"},{"v":2900,"d":"kr. 2,900.00"},{"$f":"IF(OR(TBL_Attire[[#This Row],[ANSLÅET]]=\"\",TBL_Attire[[#This Row],[FAKTISK]]=\"\"),\"\",TBL_Attire[[#This Row],[ANSLÅET]]-TBL_Attire[[#This Row],[FAKTISK]])","v":{"v":100,"d":"kr. 100.00"}}]
[null,"Ændringer",{"v":100,"d":"kr. 100.00"},null,{"$f":"IF(OR(TBL_Attire[[#This Row],[ANSLÅET]]=\"\",TBL_Attire[[#This Row],[FAKTISK]]=\"\"),\"\",TBL_Attire[[#This Row],[ANSLÅET]]-TBL_Attire[[#This Row],[FAKTISK]])","v":""}]
[null,"Hovedpynt og slør",{"v":200,"d":"kr. 200.00"},null,{"$f":"IF(OR(TBL_Attire[[#This Row],[ANSLÅET]]=\"\",TBL_Attire[[#This Row],[FAKTISK]]=\"\"),\"\",TBL_Attire[[#This Row],[ANSLÅET]]-TBL_Attire[[#This Row],[FAKTISK]])","v":""}]
[null,"Tilbehør",{"v":100,"d":"kr. 100.00"},null,{"$f":"IF(OR(TBL_Attire[[#This Row],[ANSLÅET]]=\"\",TBL_Attire[[#This Row],[FAKTISK]]=\"\"),\"\",TBL_Attire[[#This Row],[ANSLÅET]]-TBL_Attire[[#This Row],[FAKTISK]])","v":""}]
[null,"Hår og makeup",{"v":500,"d":"kr. 500.00"},null,{"$f":"IF(OR(TBL_Attire[[#This Row],[ANSLÅET]]=\"\",TBL_Attire[[#This Row],[FAKTISK]]=\"\"),\"\",TBL_Attire[[#This Row],[ANSLÅET]]-TBL_Attire[[#This Row],[FAKTISK]])","v":""}]
[null,"Diverse udgifter",{"v":100,"d":"kr. 100.00"},null,{"$f":"IF(OR(TBL_Attire[[#This Row],[ANSLÅET]]=\"\",TBL_Attire[[#This Row],[FAKTISK]]=\"\"),\"\",TBL_Attire[[#This Row],[ANSLÅET]]-TBL_Attire[[#This Row],[FAKTISK]])","v":""}]
[null,"I ALT FOR PÅKLÆDNING",{"$f":"SUBTOTAL(109,TBL_Attire[ANSLÅET])","v":{"v":4000,"d":"kr. 4,000.00"}},{"$f":"SUBTOTAL(109,TBL_Attire[FAKTISK])","v":{"v":2900,"d":"kr. 2,900.00"}},{"$f":"TBL_Attire[[#Totals],[ANSLÅET]]-TBL_Attire[[#Totals],[FAKTISK]]","v":{"v":1100,"d":"kr. 1,100.00"}}]
[]
[]
[null,"BLOMSTER OG PYNT","ANSLÅET","FAKTISK","AFVIGELSE"]
[null,"Blomster til ceremonien",{"v":1000,"d":"kr. 1,000.00"},null,{"$f":"IF(OR(TBL_FlowersAndDecor[[#This Row],[ANSLÅET]]=\"\",TBL_FlowersAndDecor[[#This Row],[FAKTISK]]=\"\"),\"\",TBL_FlowersAndDecor[[#This Row],[ANSLÅET]]-TBL_FlowersAndDecor[[#This Row],[FAKTISK]])","v":""}]
[null,"Blomster og kurv til blomsterpige",{"v":500,"d":"kr. 500.00"},null,{"$f":"IF(OR(TBL_FlowersAndDecor[[#This Row],[ANSLÅET]]=\"\",TBL_FlowersAndDecor[[#This Row],[FAKTISK]]=\"\"),\"\",TBL_FlowersAndDecor[[#This Row],[ANSLÅET]]-TBL_FlowersAndDecor[[#This Row],[FAKTISK]])","v":""}]
[null,"Ringpude",{"v":100,"d":"kr. 100.00"},null,{"$f":"IF(OR(TBL_FlowersAndDecor[[#This Row],[ANSLÅET]]=\"\",TBL_FlowersAndDecor[[#This Row],[FAKTISK]]=\"\"),\"\",TBL_FlowersAndDecor[[#This Row],[ANSLÅET]]-TBL_FlowersAndDecor[[#This Row],[FAKTISK]])","v":""}]
[null,"Blomsterbuketter",{"v":500,"d":"kr. 500.00"},null,{"$f":"IF(OR(TBL_FlowersAndDecor[[#This Row],[ANSLÅET]]=\"\",TBL_FlowersAndDecor[[#This Row],[FAKTISK]]=\"\"),\"\",TBL_FlowersAndDecor[[#This Row],[ANSLÅET]]-TBL_FlowersAndDecor[[#This Row],[FAKTISK]])","v":""}]
[null,"Knaphulsbuketter",{"v":100,"d":"kr. 100.00"},null,{"$f":"IF(OR(TBL_FlowersAndDecor[[#This Row],[ANSLÅET]]=\"\",TBL_FlowersAndDecor[[#This Row],[FAKTISK]]=\"\"),\"\",TBL_FlowersAndDecor[[#This Row],[ANSLÅET]]-TBL_FlowersAndDecor[[#This Row],[FAKTISK]])","v":""}]
[null,"Pyntebuketter",{"v":200,"d":"kr. 200.00"},null,{"$f":"IF(OR(TBL_FlowersAndDecor[[#This Row],[ANSLÅET]]=\"\",TBL_FlowersAndDecor[[#This Row],[FAKTISK]]=\"\"),\"\",TBL_FlowersAndDecor[[#This Row],[ANSLÅET]]-TBL_FlowersAndDecor[[#This Row],[FAKTISK]])","v":""}]
[null,"Receptionsdekorationer",{"v":300,"d":"kr. 300.00"},null,{"$f":"IF(OR(TBL_FlowersAndDecor[[#This Row],[ANSLÅET]]=\"\",TBL_FlowersAndDecor[[#This Row],[FAKTISK]]=\"\"),\"\",TBL_FlowersAndDecor[[#This Row],[ANSLÅET]]-TBL_FlowersAndDecor[[#This Row],[FAKTISK]])","v":""}]
[null,"Belysning",{"v":200,"d":"kr. 200.00"},null,{"$f":"IF(OR(TBL_FlowersAndDecor[[#This Row],[ANSLÅET]]=\"\",TBL_FlowersAndDecor[[#This Row],[FAKTISK]]=\"\"),\"\",TBL_FlowersAndDecor[[#This Row],[ANSLÅET]]-TBL_FlowersAndDecor[[#This Row],[FAKTISK]])","v":""}]
[null,"Diverse udgifter",{"v":100,"d":"kr. 100.00"},null,{"$f":"IF(OR(TBL_FlowersAndDecor[[#This Row],[ANSLÅET]]=\"\",TBL_FlowersAndDecor[[#This Row],[FAKTISK]]=\"\"),\"\",TBL_FlowersAndDecor[[#This Row],[ANSLÅET]]-TBL_FlowersAndDecor[[#This Row],[FAKTISK]])","v":""}]
[null,"I ALT FOR BLOMSTER OG PYNT",{"$f":"SUBTOTAL(109,TBL_FlowersAndDecor[ANSLÅET])","v":{"v":3000,"d":"kr. 3,000.00"}},{"$f":"SUBTOTAL(109,TBL_FlowersAndDecor[FAKTISK])","v":{"v":0,"d":"kr. 0.00"}},{"$f":"TBL_FlowersAndDecor[[#Totals],[ANSLÅET]]-TBL_FlowersAndDecor[[#Totals],[FAKTISK]]","v":{"v":3000,"d":"kr. 3,000.00"}}]
[]
[]
[null,"MUSIK","ANSLÅET","FAKTISK","AFVIGELSE"]
[null,"Musikere til ceremoni",{"v":700,"d":"kr. 700.00"},null,{"$f":"IF(OR(TBL_Music[[#This Row],[ANSLÅET]]=\"\",TBL_Music[[#This Row],[FAKTISK]]=\"\"),\"\",TBL_Music[[#This Row],[ANSLÅET]]-TBL_Music[[#This Row],[FAKTISK]])","v":""}]
[null,"Musikere til cocktail-hour",{"v":300,"d":"kr. 300.00"},null,{"$f":"IF(OR(TBL_Music[[#This Row],[ANSLÅET]]=\"\",TBL_Music[[#This Row],[FAKTISK]]=\"\"),\"\",TBL_Music[[#This Row],[ANSLÅET]]-TBL_Music[[#This Row],[FAKTISK]])","v":""}]
[null,"Band, DJ eller underholdning til reception",{"v":200,"d":"kr. 200.00"},null,{"$f":"IF(OR(TBL_Music[[#This Row],[ANSLÅET]]=\"\",TBL_Music[[#This Row],[FAKTISK]]=\"\"),\"\",TBL_Music[[#This Row],[ANSLÅET]]-TBL_Music[[#This Row],[FAKTISK]])","v":""}]
[null,"Leje af anlæg eller dansegulv",{"v":400,"d":"kr. 400.00"},null,{"$f":"IF(OR(TBL_Music[[#This Row],[ANSLÅET]]=\"\",TBL_Music[[#This Row],[FAKTISK]]=\"\"),\"\",TBL_Music[[#This Row],[ANSLÅET]]-TBL_Music[[#This Row],[FAKTISK]])","v":""}]
[null,"Diverse udgifter",{"v":200,"d":"kr. 200.00"},null,{"$f":"IF(OR(TBL_Music[[#This Row],[ANSLÅET]]=\"\",TBL_Music[[#This Row],[FAKTISK]]=\"\"),\"\",TBL_Music[[#This Row],[ANSLÅET]]-TBL_Music[[#This Row],[FAKTISK]])","v":""}]
[null,"I ALT FOR MUSIK",{"$f":"SUBTOTAL(109,TBL_Music[ANSLÅET])","v":{"v":1800,"d":"kr. 1,800.00"}},{"$f":"SUBTOTAL(109,TBL_Music[FAKTISK])","v":{"v":0,"d":"kr. 0.00"}},{"$f":"TBL_Music[[#Totals],[ANSLÅET]]-TBL_Music[[#Totals],[FAKTISK]]","v":{"v":1800,"d":"kr. 1,800.00"}}]
[]
[]
[null,"FOTOGRAFERING OG VIDEO","ANSLÅET","FAKTISK","AFVIGELSE"]
[null,"Fotografering",{"v":1000,"d":"kr. 1,000.00"},null,{"$f":"IF(OR(TBL_PhotographsAndVideo[[#This Row],[ANSLÅET]]=\"\",TBL_PhotographsAndVideo[[#This Row],[FAKTISK]]=\"\"),\"\",TBL_PhotographsAndVideo[[#This Row],[ANSLÅET]]-TBL_PhotographsAndVideo[[#This Row],[FAKTISK]])","v":""}]
[null,"Videooptagelse",{"v":800,"d":"kr. 800.00"},null,{"$f":"IF(OR(TBL_PhotographsAndVideo[[#This Row],[ANSLÅET]]=\"\",TBL_PhotographsAndVideo[[#This Row],[FAKTISK]]=\"\"),\"\",TBL_PhotographsAndVideo[[#This Row],[ANSLÅET]]-TBL_PhotographsAndVideo[[#This Row],[FAKTISK]])","v":""}]
[null,"Flere kopier og album",{"v":500,"d":"kr. 500.00"},null,{"$f":"IF(OR(TBL_PhotographsAndVideo[[#This Row],[ANSLÅET]]=\"\",TBL_PhotographsAndVideo[[#This Row],[FAKTISK]]=\"\"),\"\",TBL_PhotographsAndVideo[[#This Row],[ANSLÅET]]-TBL_PhotographsAndVideo[[#This Row],[FAKTISK]])","v":""}]
[null,"Diverse udgifter",{"v":200,"d":"kr. 200.00"},null,{"$f":"IF(OR(TBL_PhotographsAndVideo[[#This Row],[ANSLÅET]]=\"\",TBL_PhotographsAndVideo[[#This Row],[FAKTISK]]=\"\"),\"\",TBL_PhotographsAndVideo[[#This Row],[ANSLÅET]]-TBL_PhotographsAndVideo[[#This Row],[FAKTISK]])","v":""}]
[null,"I ALT FOR FOTOGRAFERING OG VIDEO",{"$f":"SUBTOTAL(109,TBL_PhotographsAndVideo[ANSLÅET])","v":{"v":2500,"d":"kr. 2,500.00"}},{"$f":"SUBTOTAL(109,TBL_PhotographsAndVideo[FAKTISK])","v":{"v":0,"d":"kr. 0.00"}},{"$f":"TBL_PhotographsAndVideo[[#Totals],[ANSLÅET]]-TBL_PhotographsAndVideo[[#Totals],[FAKTISK]]","v":{"v":2500,"d":"kr. 2,500.00"}}]
[]
[]
[null,"TJENESTER OG GAVER","ANSLÅET","FAKTISK","AFVIGELSE"]
[null,"Velkomstgaver",{"v":700,"d":"kr. 700.00"},null,{"$f":"IF(OR(TBL_FavorsAndGifts[[#This Row],[ANSLÅET]]=\"\",TBL_FavorsAndGifts[[#This Row],[FAKTISK]]=\"\"),\"\",TBL_FavorsAndGifts[[#This Row],[ANSLÅET]]-TBL_FavorsAndGifts[[#This Row],[FAKTISK]])","v":""}]
[null,"Gaver til gæster",{"v":200,"d":"kr. 200.00"},null,{"$f":"IF(OR(TBL_FavorsAndGifts[[#This Row],[ANSLÅET]]=\"\",TBL_FavorsAndGifts[[#This Row],[FAKTISK]]=\"\"),\"\",TBL_FavorsAndGifts[[#This Row],[ANSLÅET]]-TBL_FavorsAndGifts[[#This Row],[FAKTISK]])","v":""}]
[null,"Diverse udgifter",{"v":200,"d":"kr. 200.00"},null,{"$f":"IF(OR(TBL_FavorsAndGifts[[#This Row],[ANSLÅET]]=\"\",TBL_FavorsAndGifts[[#This Row],[FAKTISK]]=\"\"),\"\",TBL_FavorsAndGifts[[#This Row],[ANSLÅET]]-TBL_FavorsAndGifts[[#This Row],[FAKTISK]])","v":""}]
[null,"I ALT FOR TJENESTER OG GAVER",{"$f":"SUBTOTAL(109,TBL_FavorsAndGifts[ANSLÅET])","v":{"v":1100,"d":"kr. 1,100.00"}},{"$f":"SUBTOTAL(109,TBL_FavorsAndGifts[FAKTISK])","v":{"v":0,"d":"kr. 0.00"}},{"$f":"TBL_FavorsAndGifts[[#Totals],[ANSLÅET]]-TBL_FavorsAndGifts[[#Totals],[FAKTISK]]","v":{"v":1100,"d":"kr. 1,100.00"}}]
[]
[]
[null,"CEREMONI","ANSLÅET","FAKTISK","AFVIGELSE"]
[null,"Gebyr til stedet",{"v":500,"d":"kr. 500.00"},null,{"$f":"IF(OR(TBL_Ceremony[[#This Row],[ANSLÅET]]=\"\",TBL_Ceremony[[#This Row],[FAKTISK]]=\"\"),\"\",TBL_Ceremony[[#This Row],[ANSLÅET]]-TBL_Ceremony[[#This Row],[FAKTISK]])","v":""}]
[null,"Gebyr til person, der udfører vielse, eller kirkedonation",{"v":200,"d":"kr. 200.00"},null,{"$f":"IF(OR(TBL_Ceremony[[#This Row],[ANSLÅET]]=\"\",TBL_Ceremony[[#This Row],[FAKTISK]]=\"\"),\"\",TBL_Ceremony[[#This Row],[ANSLÅET]]-TBL_Ceremony[[#This Row],[FAKTISK]])","v":""}]
[null,"Diverse udgifter",{"v":100,"d":"kr. 100.00"},null,{"$f":"IF(OR(TBL_Ceremony[[#This Row],[ANSLÅET]]=\"\",TBL_Ceremony[[#This Row],[FAKTISK]]=\"\"),\"\",TBL_Ceremony[[#This Row],[ANSLÅET]]-TBL_Ceremony[[#This Row],[FAKTISK]])","v":""}]
[null,"I ALT FOR CEREMONI",{"$f":"SUBTOTAL(109,TBL_Ceremony[ANSLÅET])","v":{"v":800,"d":"kr. 800.00"}},{"$f":"SUBTOTAL(109,TBL_Ceremony[FAKTISK])","v":{"v":0,"d":"kr. 0.00"}},{"$f":"TBL_Ceremony[[#Totals],[ANSLÅET]]-TBL_Ceremony[[#Totals],[FAKTISK]]","v":{"v":800,"d":"kr. 800.00"}}]
[]
[]
[null,"BREVPAPIR","ANSLÅET","FAKTISK","AFVIGELSE"]
[null,"Sæt kryds i kalenderen-kort",{"v":50,"d":"kr. 50.00"},null,{"$f":"IF(OR(TBL_Stationery[[#This Row],[ANSLÅET]]=\"\",TBL_Stationery[[#This Row],[FAKTISK]]=\"\"),\"\",TBL_Stationery[[#This Row],[ANSLÅET]]-TBL_Stationery[[#This Row],[FAKTISK]])","v":""}]
[null,"Invitationer og s.u.",{"v":100,"d":"kr. 100.00"},null,{"$f":"IF(OR(TBL_Stationery[[#This Row],[ANSLÅET]]=\"\",TBL_Stationery[[#This Row],[FAKTISK]]=\"\"),\"\",TBL_Stationery[[#This Row],[ANSLÅET]]-TBL_Stationery[[#This Row],[FAKTISK]])","v":""}]
[null,"Programmer",{"v":50,"d":"kr. 50.00"},null,{"$f":"IF(OR(TBL_Stationery[[#This Row],[ANSLÅET]]=\"\",TBL_Stationery[[#This Row],[FAKTISK]]=\"\"),\"\",TBL_Stationery[[#This Row],[ANSLÅET]]-TBL_Stationery[[#This Row],[FAKTISK]])","v":""}]
[null,"Bordplan og bordkort",{"v":50,"d":"kr. 50.00"},null,{"$f":"IF(OR(TBL_Stationery[[#This Row],[ANSLÅET]]=\"\",TBL_Stationery[[#This Row],[FAKTISK]]=\"\"),\"\",TBL_Stationery[[#This Row],[ANSLÅET]]-TBL_Stationery[[#This Row],[FAKTISK]])","v":""}]
[null,"Menukort",{"v":50,"d":"kr. 50.00"},null,{"$f":"IF(OR(TBL_Stationery[[#This Row],[ANSLÅET]]=\"\",TBL_Stationery[[#This Row],[FAKTISK]]=\"\"),\"\",TBL_Stationery[[#This Row],[ANSLÅET]]-TBL_Stationery[[#This Row],[FAKTISK]])","v":""}]
[null,"Takkekort",{"v":50,"d":"kr. 50.00"},null,{"$f":"IF(OR(TBL_Stationery[[#This Row],[ANSLÅET]]=\"\",TBL_Stationery[[#This Row],[FAKTISK]]=\"\"),\"\",TBL_Stationery[[#This Row],[ANSLÅET]]-TBL_Stationery[[#This Row],[FAKTISK]])","v":""}]
[null,"Porto",{"v":50,"d":"kr. 50.00"},null,{"$f":"IF(OR(TBL_Stationery[[#This Row],[ANSLÅET]]=\"\",TBL_Stationery[[#This Row],[FAKTISK]]=\"\"),\"\",TBL_Stationery[[#This Row],[ANSLÅET]]-TBL_Stationery[[#This Row],[FAKTISK]])","v":""}]
[null,"Diverse udgifter",{"v":100,"d":"kr. 100.00"},null,{"$f":"IF(OR(TBL_Stationery[[#This Row],[ANSLÅET]]=\"\",TBL_Stationery[[#This Row],[FAKTISK]]=\"\"),\"\",TBL_Stationery[[#This Row],[ANSLÅET]]-TBL_Stationery[[#This Row],[FAKTISK]])","v":""}]
[null,"I ALT FOR BREVPAPIR",{"$f":"SUBTOTAL(109,TBL_Stationery[ANSLÅET])","v":{"v":500,"d":"kr. 500.00"}},{"$f":"SUBTOTAL(109,TBL_Stationery[FAKTISK])","v":{"v":0,"d":"kr. 0.00"}},{"$f":"TBL_Stationery[[#Totals],[ANSLÅET]]-TBL_Stationery[[#Totals],[FAKTISK]]","v":{"v":500,"d":"kr. 500.00"}}]
[]
[]
[null,"VIELSESRINGE","ANSLÅET","FAKTISK","AFVIGELSE"]
[null,"Vielsesringe",{"v":1000,"d":"kr. 1,000.00"},null,{"$f":"IF(OR(TBL_WeddingRings[[#This Row],[ANSLÅET]]=\"\",TBL_WeddingRings[[#This Row],[FAKTISK]]=\"\"),\"\",TBL_WeddingRings[[#This Row],[ANSLÅET]]-TBL_WeddingRings[[#This Row],[FAKTISK]])","v":""}]
[null,"Tilbehør til ringe",{"v":100,"d":"kr. 100.00"},null,{"$f":"IF(OR(TBL_WeddingRings[[#This Row],[ANSLÅET]]=\"\",TBL_WeddingRings[[#This Row],[FAKTISK]]=\"\"),\"\",TBL_WeddingRings[[#This Row],[ANSLÅET]]-TBL_WeddingRings[[#This Row],[FAKTISK]])","v":""}]
[null,"I ALT FOR VIELSESRINGE",{"$f":"SUBTOTAL(109,TBL_WeddingRings[ANSLÅET])","v":{"v":1100,"d":"kr. 1,100.00"}},{"$f":"SUBTOTAL(109,TBL_WeddingRings[FAKTISK])","v":{"v":0,"d":"kr. 0.00"}},{"$f":"TBL_WeddingRings[[#Totals],[ANSLÅET]]-TBL_WeddingRings[[#Totals],[FAKTISK]]","v":{"v":1100,"d":"kr. 1,100.00"}}]
[]
[]
[null,"TRANSPORT  ","ANSLÅET","FAKTISK","AFVIGELSE"]
[null,"Leje af hovedbil",{"v":100,"d":"kr. 100.00"},null,{"$f":"IF(OR(TBL_Transportation[[#This Row],[ANSLÅET]]=\"\",TBL_Transportation[[#This Row],[FAKTISK]]=\"\"),\"\",TBL_Transportation[[#This Row],[ANSLÅET]]-TBL_Transportation[[#This Row],[FAKTISK]])","v":""}]
[null,"Leje af gæstebiler",{"v":100,"d":"kr. 100.00"},null,{"$f":"IF(OR(TBL_Transportation[[#This Row],[ANSLÅET]]=\"\",TBL_Transportation[[#This Row],[FAKTISK]]=\"\"),\"\",TBL_Transportation[[#This Row],[ANSLÅET]]-TBL_Transportation[[#This Row],[FAKTISK]])","v":""}]
[null,"Transport til udenbysgæster",{"v":100,"d":"kr. 100.00"},null,{"$f":"IF(OR(TBL_Transportation[[#This Row],[ANSLÅET]]=\"\",TBL_Transportation[[#This Row],[FAKTISK]]=\"\"),\"\",TBL_Transportation[[#This Row],[ANSLÅET]]-TBL_Transportation[[#This Row],[FAKTISK]])","v":""}]
[null,"Valet-parkering",{"v":50,"d":"kr. 50.00"},null,{"$f":"IF(OR(TBL_Transportation[[#This Row],[ANSLÅET]]=\"\",TBL_Transportation[[#This Row],[FAKTISK]]=\"\"),\"\",TBL_Transportation[[#This Row],[ANSLÅET]]-TBL_Transportation[[#This Row],[FAKTISK]])","v":""}]
[null,"Diverse udgifter",{"v":100,"d":"kr. 100.00"},null,{"$f":"IF(OR(TBL_Transportation[[#This Row],[ANSLÅET]]=\"\",TBL_Transportation[[#This Row],[FAKTISK]]=\"\"),\"\",TBL_Transportation[[#This Row],[ANSLÅET]]-TBL_Transportation[[#This Row],[FAKTISK]])","v":""}]
[null,"I ALT FOR TRANSPORT",{"$f":"SUBTOTAL(109,TBL_Transportation[ANSLÅET])","v":{"v":450,"d":"kr. 450.00"}},{"$f":"SUBTOTAL(109,TBL_Transportation[FAKTISK])","v":{"v":0,"d":"kr. 0.00"}},{"$f":"TBL_Transportation[[#Totals],[ANSLÅET]]-TBL_Transportation[[#Totals],[FAKTISK]]","v":{"v":450,"d":"kr. 450.00"}}]